[Event "Early-Titled-Tuesday-Blitz-February-13-2024"]
[Site "Chess.com"]
[Date "2024.02.13"]
[Round "2"]
[White "Elegance_Riks"]
[Black "Schwarzschidl"]
[Result "1-0"]
[WhiteElo "2787"]
[BlackElo "2556"]
[TimeControl "180+1"]
[EndTime "8:20:57 PST"]
[Termination "Elegance_Riks won by resignation"]

1. Nf3 {[%clk 0:03:00.9]} 1... d5 {[%clk 0:02:59.8]} 2. g3 {[%clk 0:03:00.4]}
2... Nf6 {[%clk 0:02:55.1]} 3. Bg2 {[%clk 0:03:00.6]} 3... e6 {[%clk 0:02:52.9]}
4. O-O {[%clk 0:03:00.1]} 4... Be7 {[%clk 0:02:53.7]} 5. c4 {[%clk 0:03:00.3]}
5... O-O {[%clk 0:02:54.5]} 6. b3 {[%clk 0:03:00.7]} 6... a5 {[%clk 0:02:54]} 7.
Nc3 {[%clk 0:02:59]} 7... c6 {[%clk 0:02:53.7]} 8. d4 {[%clk 0:02:55.7]} 8... b6
{[%clk 0:02:54]} 9. Bb2 {[%clk 0:02:53.8]} 9... Ba6 {[%clk 0:02:54.1]} 10. Nd2
{[%clk 0:02:54.1]} 10... Nbd7 {[%clk 0:02:54.1]} 11. e4 {[%clk 0:02:54.2]} 11...
dxe4 {[%clk 0:02:51.6]} 12. Ndxe4 {[%clk 0:02:52.6]} 12... Rc8 {[%clk
0:02:52.2]} 13. Re1 {[%clk 0:02:52]} 13... b5 {[%clk 0:02:50.7]} 14. c5 {[%clk
0:02:40.4]} 14... b4 {[%clk 0:02:50.7]} 15. Nxf6+ {[%clk 0:02:40.2]} 15... Nxf6
{[%clk 0:02:49.3]} 16. Ne4 {[%clk 0:02:36.9]} 16... Nd5 {[%clk 0:02:49]} 17. Qc2
{[%clk 0:02:33.5]} 17... Qc7 {[%clk 0:02:42.3]} 18. Rad1 {[%clk 0:02:32.3]}
18... Rce8 {[%clk 0:02:42.2]} 19. Nd2 {[%clk 0:02:30.6]} 19... Bf6 {[%clk
0:02:40.5]} 20. Nc4 {[%clk 0:02:30.5]} 20... g6 {[%clk 0:02:32.2]} 21. h4 {[%clk
0:02:27.8]} 21... Bg7 {[%clk 0:02:21.9]} 22. h5 {[%clk 0:02:26.8]} 22... Rd8
{[%clk 0:02:08.2]} 23. Nd6 {[%clk 0:02:20.3]} 23... Rd7 {[%clk 0:02:01.8]} 24.
Qc1 {[%clk 0:02:08.7]} 24... Rfd8 {[%clk 0:01:51.6]} 25. hxg6 {[%clk 0:02:01.9]}
25... hxg6 {[%clk 0:01:51.2]} 26. Bxd5 {[%clk 0:02:00.7]} 26... cxd5 {[%clk
0:01:50.9]} 27. Kg2 {[%clk 0:01:58.2]} 27... Rxd6 {[%clk 0:01:43.2]} 28. cxd6
{[%clk 0:01:57.9]} 28... Qxd6 {[%clk 0:01:44.1]} 29. Qe3 {[%clk 0:01:49.9]}
29... Qb6 {[%clk 0:01:22.3]} 30. Rh1 {[%clk 0:01:46.2]} 30... a4 {[%clk
0:01:14.2]} 31. Qg5 {[%clk 0:01:37.1]} 31... a3 {[%clk 0:01:00.5]} 32. Bc1
{[%clk 0:01:36.7]} 32... Rc8 {[%clk 0:01:00]} 33. Bf4 {[%clk 0:01:35.9]} 33...
Bxd4 {[%clk 0:00:55.1]} 34. Be5 {[%clk 0:01:28.4]} 34... Bxe5 {[%clk 0:00:53.7]}
35. Qxe5 {[%clk 0:01:28.7]} 35... Kf8 {[%clk 0:00:54]} 36. Qf6 {[%clk
0:01:21.8]} 36... Ke8 {[%clk 0:00:54.2]} 37. Rh8+ {[%clk 0:01:20.8]} 37... Kd7
{[%clk 0:00:54.7]} 38. Qxf7+ {[%clk 0:01:21.2]} 38... Kd6 {[%clk 0:00:55.4]} 39.
Qf4+ {[%clk 0:01:21.2]} 39... Kd7 {[%clk 0:00:52.2]} 40. Rh7+ {[%clk 0:01:20.1]}
40... Kc6 {[%clk 0:00:52.6]} 41. Qf7 {[%clk 0:00:45.8]} 41... Kb5 {[%clk
0:00:42.3]} 42. Re1 {[%clk 0:00:45.6]} 42... Rc6 {[%clk 0:00:40.1]} 43. Qe8
{[%clk 0:00:38.4]} 43... Ka5 {[%clk 0:00:37.3]} 44. Re7 {[%clk 0:00:31.7]} 44...
Rc2 {[%clk 0:00:25.8]} 45. Qf7 {[%clk 0:00:31.6]} 45... Bc8 {[%clk 0:00:25.7]}
46. Ra7+ {[%clk 0:00:27.7]} 46... Kb5 {[%clk 0:00:25.6]} 47. Qe8+ {[%clk
0:00:19.4]} 47... Qc6 {[%clk 0:00:25.5]} 48. Qxc6+ {[%clk 0:00:19]} 48... Kxc6
{[%clk 0:00:26.4]} 49. Rg7 {[%clk 0:00:17.8]} 49... Kd6 {[%clk 0:00:26.6]} 50.
Ra1 {[%clk 0:00:17.2]} 50... d4 {[%clk 0:00:26.4]} 51. Rxg6 {[%clk 0:00:15]}
51... Bb7+ {[%clk 0:00:26.9]} 52. Kf1 {[%clk 0:00:15.5]} 52... Be4 {[%clk
0:00:27.4]} 53. Rg8 {[%clk 0:00:15.8]} 53... Bf3 {[%clk 0:00:27.7]} 54. Rd8+
{[%clk 0:00:16]} 54... Ke5 {[%clk 0:00:28.3]} 55. Re1+ {[%clk 0:00:16.1]} 55...
Kf5 {[%clk 0:00:29]} 56. Rxd4 {[%clk 0:00:16.4]} 56... Rxa2 {[%clk 0:00:29.7]}
57. Rf4+ {[%clk 0:00:16.2]} 57... Kg5 {[%clk 0:00:30]} 58. Rxf3 {[%clk
0:00:17.1]} 58... Rb2 {[%clk 0:00:30.2]} 59. Rfe3 {[%clk 0:00:17.2]} 59... a2
{[%clk 0:00:30.6]} 60. Re5+ {[%clk 0:00:17.7]} 60... Kg4 {[%clk 0:00:30.9]} 61.
Ra5 {[%clk 0:00:18.6]} 61... Rxb3 {[%clk 0:00:28.9]} 62. Rxa2 {[%clk 0:00:18.1]}
62... Kf3 {[%clk 0:00:28.7]} 63. Rae2 {[%clk 0:00:19]} 63... Kg4 {[%clk
0:00:28.7]} 64. Re4+ {[%clk 0:00:19.2]} 64... Kf5 {[%clk 0:00:29.2]} 65. Re5+
{[%clk 0:00:19.8]} 65... Kg4 {[%clk 0:00:29.6]} 66. Rxe6 {[%clk 0:00:20]} 66...
Rb2 {[%clk 0:00:28.8]} 67. R6e4+ {[%clk 0:00:20.3]} 67... Kf5 {[%clk 0:00:28.8]}
68. Rf4+ {[%clk 0:00:20.4]} 68... Kg5 {[%clk 0:00:29.1]} 69. Kg2 {[%clk
0:00:21]} 69... b3 {[%clk 0:00:29.4]} 70. Re5+ {[%clk 0:00:21.5]} 70... Kg6
{[%clk 0:00:29.4]} 71. Rb5 {[%clk 0:00:21.7]} 71... Ra2 {[%clk 0:00:28.6]} 72.
Rxb3 {[%clk 0:00:20.6]} 1-0

[Event "Early-Titled-Tuesday-Blitz-February-13-2024"]
[Site "Chess.com"]
[Date "2024.02.13"]
[Round "2"]
[White "Austen48"]
[Black "verrbaa"]
[Result "0-1"]
[WhiteElo "2214"]
[BlackElo "2499"]
[TimeControl "180+1"]
[EndTime "8:20:57 PST"]
[Termination "verrbaa won by resignation"]

1. d4 {[%clk 0:03:00.9]} 1... Nf6 {[%clk 0:02:59.4]} 2. c4 {[%clk 0:03:00.5]}
2... g6 {[%clk 0:02:56]} 3. Nc3 {[%clk 0:03:00.6]} 3... d5 {[%clk 0:02:54.7]} 4.
Nf3 {[%clk 0:02:59.4]} 4... Bg7 {[%clk 0:02:54.7]} 5. Qb3 {[%clk 0:02:59]} 5...
dxc4 {[%clk 0:02:51.9]} 6. Qxc4 {[%clk 0:02:59.7]} 6... a6 {[%clk 0:02:52.5]} 7.
e4 {[%clk 0:02:57.4]} 7... b5 {[%clk 0:02:50.4]} 8. Qb3 {[%clk 0:02:52.6]} 8...
Bb7 {[%clk 0:02:28.9]} 9. e5 {[%clk 0:02:39.1]} 9... Nd5 {[%clk 0:02:22.4]} 10.
a4 {[%clk 0:02:18.2]} 10... Nxc3 {[%clk 0:02:16.1]} 11. bxc3 {[%clk 0:02:16.7]}
11... Bd5 {[%clk 0:02:12]} 12. Qb2 {[%clk 0:02:10.5]} 12... bxa4 {[%clk
0:02:01.5]} 13. Rxa4 {[%clk 0:02:05.4]} 13... O-O {[%clk 0:02:01.3]} 14. Be2
{[%clk 0:02:03.7]} 14... c5 {[%clk 0:01:52.6]} 15. O-O {[%clk 0:01:54.8]} 15...
Nc6 {[%clk 0:01:41.4]} 16. Be3 {[%clk 0:01:52.3]} 16... Rb8 {[%clk 0:01:21.3]}
17. Qa1 {[%clk 0:01:48]} 17... cxd4 {[%clk 0:01:19.9]} 18. cxd4 {[%clk
0:01:44.8]} 18... Nb4 {[%clk 0:01:17.8]} 19. Rc1 {[%clk 0:01:26.9]} 19... f6
{[%clk 0:01:11.4]} 20. Qc3 {[%clk 0:01:05.3]} 20... Na2 {[%clk 0:01:09.7]} 21.
Rxa2 {[%clk 0:00:52]} 21... Bxa2 {[%clk 0:01:10.6]} 22. Bxa6 {[%clk 0:00:46.9]}
22... Bd5 {[%clk 0:01:08.7]} 23. Bc4 {[%clk 0:00:44.7]} 23... Kh8 {[%clk
0:01:07.7]} 24. Bxd5 {[%clk 0:00:44.1]} 24... Qxd5 {[%clk 0:01:07.8]} 25. h3
{[%clk 0:00:42.3]} 25... fxe5 {[%clk 0:00:59.8]} 26. dxe5 {[%clk 0:00:41.1]}
26... Rbd8 {[%clk 0:00:28.8]} 27. Bg5 {[%clk 0:00:26.2]} 27... Qe6 {[%clk
0:00:22.2]} 28. Qc7 {[%clk 0:00:20.9]} 28... Rc8 {[%clk 0:00:19.8]} 29. Qa5
{[%clk 0:00:12.5]} 29... Rxc1+ {[%clk 0:00:19.4]} 30. Bxc1 {[%clk 0:00:13.1]}
30... h6 {[%clk 0:00:18.5]} 31. Be3 {[%clk 0:00:12.5]} 31... Kh7 {[%clk
0:00:18.8]} 32. Qb5 {[%clk 0:00:12.1]} 32... Rd8 {[%clk 0:00:18.1]} 33. Qa4
{[%clk 0:00:09.1]} 33... Qd5 {[%clk 0:00:17.9]} 34. Qf4 {[%clk 0:00:08.2]} 34...
Rf8 {[%clk 0:00:17.4]} 35. Qh4 {[%clk 0:00:07.1]} 35... Rf5 {[%clk 0:00:08.8]}
36. Qxe7 {[%clk 0:00:06]} 36... Qd1+ {[%clk 0:00:08.9]} 37. Kh2 {[%clk
0:00:05.1]} 37... Qd5 {[%clk 0:00:08.9]} 38. Qh4 {[%clk 0:00:03.5]} 38... Kg8
{[%clk 0:00:06.7]} 39. Qe7 {[%clk 0:00:03]} 39... Rf7 {[%clk 0:00:06.5]} 40.
Qe8+ {[%clk 0:00:02.9]} 40... Rf8 {[%clk 0:00:06.9]} 41. Qe7 {[%clk 0:00:03.3]}
41... Qf7 {[%clk 0:00:06.5]} 42. Qxf7+ {[%clk 0:00:03.3]} 42... Kxf7 {[%clk
0:00:06.4]} 43. Bc5 {[%clk 0:00:03.3]} 43... Re8 {[%clk 0:00:06.6]} 44. Bd6
{[%clk 0:00:03.7]} 44... Ke6 {[%clk 0:00:06.4]} 45. g4 {[%clk 0:00:03.9]} 45...
g5 {[%clk 0:00:06.5]} 46. Kg3 {[%clk 0:00:04]} 46... Kd5 {[%clk 0:00:06.5]} 47.
Kg2 {[%clk 0:00:02.8]} 47... Rc8 {[%clk 0:00:06.6]} 48. Kf1 {[%clk 0:00:02.9]}
48... Ke4 {[%clk 0:00:06.4]} 49. Ke2 {[%clk 0:00:03.3]} 49... Rc2+ {[%clk
0:00:06.4]} 50. Nd2+ {[%clk 0:00:02.4]} 50... Kd5 {[%clk 0:00:06.4]} 51. f3
{[%clk 0:00:02]} 51... Bxe5 {[%clk 0:00:06]} 52. Kd3 {[%clk 0:00:02.5]} 52...
Ra2 {[%clk 0:00:05.4]} 53. Bxe5 {[%clk 0:00:01.9]} 53... Kxe5 {[%clk 0:00:05.7]}
54. Nc4+ {[%clk 0:00:02.4]} 54... Kf4 {[%clk 0:00:05.9]} 55. Nd6 {[%clk
0:00:02.6]} 55... Kxf3 {[%clk 0:00:06]} 56. Nf7 {[%clk 0:00:03.2]} 56... Kg3
{[%clk 0:00:06]} 57. Nxh6 {[%clk 0:00:03.7]} 57... Kxh3 {[%clk 0:00:06.4]} 58.
Nf7 {[%clk 0:00:04]} 58... Kxg4 {[%clk 0:00:06.2]} 59. Ke4 {[%clk 0:00:04.7]}
59... Ra4+ {[%clk 0:00:05.9]} 60. Ke3 {[%clk 0:00:05.3]} 60... Kf5 {[%clk
0:00:05.7]} 61. Nh6+ {[%clk 0:00:05.4]} 61... Kg6 {[%clk 0:00:05.6]} 62. Ng8
{[%clk 0:00:05.6]} 62... Ra7 {[%clk 0:00:05.3]} 63. Kf3 {[%clk 0:00:03.9]} 63...
Kg7 {[%clk 0:00:05.5]} 64. Kg4 {[%clk 0:00:02.9]} 64... Kxg8 {[%clk 0:00:05.9]}
65. Kxg5 {[%clk 0:00:03.8]} 65... Kg7 {[%clk 0:00:06.3]} 0-1

[Event "Early-Titled-Tuesday-Blitz-February-13-2024"]
[Site "Chess.com"]
[Date "2024.02.13"]
[Round "2"]
[White "FLYD"]
[Black "JERO-8914"]
[Result "0-1"]
[WhiteElo "1963"]
[BlackElo "2440"]
[TimeControl "180+1"]
[EndTime "8:20:57 PST"]
[Termination "JERO-8914 won on time"]

1. e4 {[%clk 0:03:00.9]} 1... e5 {[%clk 0:02:58.5]} 2. Nf3 {[%clk 0:02:59.7]}
2... Nf6 {[%clk 0:02:58.1]} 3. Nc3 {[%clk 0:02:58.3]} 3... Nc6 {[%clk
0:02:57.7]} 4. Bc4 {[%clk 0:02:58]} 4... Bc5 {[%clk 0:02:55.9]} 5. O-O {[%clk
0:02:57.9]} 5... d6 {[%clk 0:02:52.8]} 6. h3 {[%clk 0:02:55.7]} 6... h6 {[%clk
0:02:50.8]} 7. d3 {[%clk 0:02:54.5]} 7... g5 {[%clk 0:02:48.2]} 8. Nh2 {[%clk
0:02:48.6]} 8... Rg8 {[%clk 0:02:36.5]} 9. Be3 {[%clk 0:02:47.9]} 9... Bb6
{[%clk 0:02:33.6]} 10. a4 {[%clk 0:02:39.8]} 10... h5 {[%clk 0:02:31.6]} 11. Rb1
{[%clk 0:02:34.8]} 11... h4 {[%clk 0:02:16.9]} 12. b4 {[%clk 0:02:33.1]} 12...
g4 {[%clk 0:02:15.4]} 13. a5 {[%clk 0:02:10.6]} 13... Bd4 {[%clk 0:02:06.6]} 14.
Bxd4 {[%clk 0:02:00.2]} 14... Nxd4 {[%clk 0:02:03.7]} 15. hxg4 {[%clk
0:01:57.7]} 15... Bxg4 {[%clk 0:01:59.3]} 16. Nxg4 {[%clk 0:01:55.6]} 16... Nxg4
{[%clk 0:01:55.8]} 17. Nd5 {[%clk 0:01:40.5]} 17... h3 {[%clk 0:01:52.9]} 18. g3
{[%clk 0:01:33.2]} 18... Qg5 {[%clk 0:01:36.1]} 19. Qxg4 {[%clk 0:00:57.4]}
19... Qxg4 {[%clk 0:01:30.9]} 20. Nf6+ {[%clk 0:00:57.3]} 20... Ke7 {[%clk
0:01:30.2]} 21. Nxg4 {[%clk 0:00:57.3]} 21... Nf3+ {[%clk 0:01:30.5]} 22. Kh1
{[%clk 0:00:56.1]} 22... Rxg4 {[%clk 0:01:31.2]} 23. Rfe1 {[%clk 0:00:50.8]}
23... Nxe1 {[%clk 0:01:30.1]} 24. Rxe1 {[%clk 0:00:50]} 24... Rf8 {[%clk
0:01:27.3]} 25. Bd5 {[%clk 0:00:32.3]} 25... c6 {[%clk 0:01:24.9]} 26. Bb3
{[%clk 0:00:30.5]} 26... f5 {[%clk 0:01:25.1]} 27. exf5 {[%clk 0:00:24.3]} 27...
Rxf5 {[%clk 0:01:24.8]} 28. Re2 {[%clk 0:00:24.6]} 28... Rxb4 {[%clk 0:01:22.1]}
29. f4 {[%clk 0:00:21.3]} 29... Kf6 {[%clk 0:01:18.8]} 30. fxe5+ {[%clk
0:00:21.1]} 30... dxe5 {[%clk 0:01:19.7]} 31. Kh2 {[%clk 0:00:20.1]} 31... Rb5
{[%clk 0:01:00.7]} 32. a6 {[%clk 0:00:19.7]} 32... bxa6 {[%clk 0:00:59.6]} 33.
Bc4 {[%clk 0:00:19.6]} 33... Rc5 {[%clk 0:00:56.7]} 34. Bxa6 {[%clk 0:00:19.3]}
34... Ra5 {[%clk 0:00:53.9]} 35. Bc4 {[%clk 0:00:19.4]} 35... Ra3 {[%clk
0:00:53.9]} 36. Bb3 {[%clk 0:00:19.7]} 36... a5 {[%clk 0:00:53.8]} 37. Re4
{[%clk 0:00:18]} 37... Rf3 {[%clk 0:00:37.8]} 38. Rc4 {[%clk 0:00:15.3]} 38...
Kg5 {[%clk 0:00:32.6]} 39. Rc5 {[%clk 0:00:11]} 39... Kf5 {[%clk 0:00:22.8]} 40.
Rxc6 {[%clk 0:00:09.6]} 40... Ra1 {[%clk 0:00:22.7]} 41. Be6+ {[%clk 0:00:08.3]}
41... Kg5 {[%clk 0:00:21.4]} 42. Kxh3 {[%clk 0:00:07.5]} 42... Rf2 {[%clk
0:00:20.4]} 43. Bd5 {[%clk 0:00:05.4]} 43... Rc1 {[%clk 0:00:19.3]} 44. Rc8
{[%clk 0:00:04.8]} 44... Rcxc2 {[%clk 0:00:18.7]} 45. Rg8+ {[%clk 0:00:04.3]}
45... Kf6 {[%clk 0:00:18.7]} 46. Rf8+ {[%clk 0:00:04.6]} 46... Ke7 {[%clk
0:00:18.8]} 47. Ra8 {[%clk 0:00:04.9]} 47... Rc5 {[%clk 0:00:17.6]} 48. Be4
{[%clk 0:00:04.3]} 48... Rf6 {[%clk 0:00:16]} 49. Kg4 {[%clk 0:00:04.3]} 49...
Rf8 {[%clk 0:00:11.5]} 50. Ra7+ {[%clk 0:00:04.1]} 50... Kd6 {[%clk 0:00:11.3]}
51. Ra6+ {[%clk 0:00:04.5]} 51... Kc7 {[%clk 0:00:11.4]} 52. Ra7+ {[%clk
0:00:05.2]} 52... Kb6 {[%clk 0:00:11.7]} 53. Rb7+ {[%clk 0:00:05.6]} 53... Ka6
{[%clk 0:00:11.5]} 54. Re7 {[%clk 0:00:05.9]} 54... Rf6 {[%clk 0:00:10.5]} 55.
Rb7 {[%clk 0:00:03.7]} 55... Rb6 {[%clk 0:00:10.7]} 56. Rd7 {[%clk 0:00:03.2]}
56... a4 {[%clk 0:00:10.9]} 57. d4 {[%clk 0:00:03]} 57... exd4 {[%clk
0:00:10.9]} 58. Rxd4 {[%clk 0:00:03.7]} 58... Ka5 {[%clk 0:00:11.4]} 59. Rd8
{[%clk 0:00:02.5]} 59... Rb4 {[%clk 0:00:11.1]} 60. Kf3 {[%clk 0:00:02.1]} 60...
Rc3+ {[%clk 0:00:11.3]} 61. Kf4 {[%clk 0:00:02.1]} 61... Rcc4 {[%clk 0:00:11.2]}
62. Re8 {[%clk 0:00:02.9]} 62... a3 {[%clk 0:00:11.4]} 63. Ra8+ {[%clk
0:00:03.2]} 63... Kb6 {[%clk 0:00:11.7]} 64. Rb8+ {[%clk 0:00:03.3]} 64... Kc5
{[%clk 0:00:12.1]} 65. Rxb4 {[%clk 0:00:03.5]} 65... Rxb4 {[%clk 0:00:13]} 0-1

[Event "Early-Titled-Tuesday-Blitz-February-13-2024"]
[Site "Chess.com"]
[Date "2024.02.13"]
[Round "2"]
[White "Mikasinski"]
[Black "BogdanDeac"]
[Result "0-1"]
[WhiteElo "2663"]
[BlackElo "3003"]
[TimeControl "180+1"]
[EndTime "8:20:58 PST"]
[Termination "BogdanDeac won by resignation"]

1. e4 {[%clk 0:03:00.9]} 1... c6 {[%clk 0:03:00.4]} 2. d4 {[%clk 0:02:56.7]}
2... d5 {[%clk 0:03:01.3]} 3. e5 {[%clk 0:02:57.1]} 3... Bf5 {[%clk 0:03:01]} 4.
h4 {[%clk 0:02:57]} 4... h5 {[%clk 0:03:00.8]} 5. Bd3 {[%clk 0:02:57.8]} 5...
Bxd3 {[%clk 0:03:01]} 6. Qxd3 {[%clk 0:02:58.3]} 6... e6 {[%clk 0:03:01.7]} 7.
Bg5 {[%clk 0:02:59]} 7... Be7 {[%clk 0:03:02]} 8. Nf3 {[%clk 0:02:58.6]} 8...
Nh6 {[%clk 0:03:02.5]} 9. Bxh6 {[%clk 0:02:57.9]} 9... Rxh6 {[%clk 0:03:02.1]}
10. Nbd2 {[%clk 0:02:58.1]} 10... c5 {[%clk 0:02:59.2]} 11. dxc5 {[%clk
0:02:50.8]} 11... Na6 {[%clk 0:02:47.8]} 12. Nb3 {[%clk 0:02:14.2]} 12... Nxc5
{[%clk 0:02:34.2]} 13. Nxc5 {[%clk 0:01:58.2]} 13... Qa5+ {[%clk 0:02:33.8]} 14.
c3 {[%clk 0:01:54.9]} 14... Qxc5 {[%clk 0:02:33.4]} 15. Qd4 {[%clk 0:01:41.8]}
15... Rc8 {[%clk 0:02:26.7]} 16. Qxc5 {[%clk 0:01:40.7]} 16... Rxc5 {[%clk
0:02:26.1]} 17. Kd2 {[%clk 0:01:35.9]} 17... Rg6 {[%clk 0:02:07.2]} 18. g3
{[%clk 0:01:32.7]} 18... Rg4 {[%clk 0:02:04.4]} 19. Nd4 {[%clk 0:01:29]} 19...
Rc4 {[%clk 0:01:52]} 20. b3 {[%clk 0:01:10.4]} 20... Rc8 {[%clk 0:01:50.1]} 21.
Rhg1 {[%clk 0:01:05.5]} 21... Kd7 {[%clk 0:01:38.1]} 22. f3 {[%clk 0:01:04.8]}
22... Rg6 {[%clk 0:01:37.3]} 23. Rac1 {[%clk 0:01:00.3]} 23... Ba3 {[%clk
0:01:06.4]} 24. Rc2 {[%clk 0:00:59.9]} 24... Be7 {[%clk 0:00:44.7]} 25. Kd3
{[%clk 0:00:57]} 25... Bxh4 {[%clk 0:00:42.3]} 26. Ne2 {[%clk 0:00:45.3]} 26...
Be7 {[%clk 0:00:35.4]} 27. Rh1 {[%clk 0:00:45.5]} 27... Rh6 {[%clk 0:00:35.3]}
28. c4 {[%clk 0:00:42.1]} 28... dxc4+ {[%clk 0:00:32.5]} 29. bxc4 {[%clk
0:00:42.4]} 29... h4 {[%clk 0:00:32]} 30. g4 {[%clk 0:00:41.8]} 30... Rhh8
{[%clk 0:00:26.8]} 31. Ke4 {[%clk 0:00:41.9]} 31... g5 {[%clk 0:00:23.4]} 32. a4
{[%clk 0:00:36.9]} 32... Kc7 {[%clk 0:00:18.1]} 33. a5 {[%clk 0:00:32.4]} 33...
Rcd8 {[%clk 0:00:14.5]} 34. Rb2 {[%clk 0:00:28.6]} 34... Bc5 {[%clk 0:00:14.8]}
35. Rhb1 {[%clk 0:00:24.5]} 35... b6 {[%clk 0:00:14.4]} 36. a6 {[%clk
0:00:24.4]} 36... Rd7 {[%clk 0:00:08.2]} 37. f4 {[%clk 0:00:22.2]} 37... gxf4
{[%clk 0:00:05.9]} 38. Rf1 {[%clk 0:00:21.3]} 38... h3 {[%clk 0:00:05.4]} 39.
Rh1 {[%clk 0:00:17.2]} 39... f3 {[%clk 0:00:03.1]} 40. Kxf3 {[%clk 0:00:17.4]}
40... Rd3+ {[%clk 0:00:02.9]} 41. Kf4 {[%clk 0:00:17.2]} 41... Ra3 {[%clk
0:00:02.5]} 42. Ng3 {[%clk 0:00:09.9]} 42... Rxa6 {[%clk 0:00:02.4]} 43. Ne4
{[%clk 0:00:10.3]} 43... Ra4 {[%clk 0:00:02.7]} 44. Rc2 {[%clk 0:00:08.4]} 44...
Kc6 {[%clk 0:00:02.7]} 45. Ng5 {[%clk 0:00:08.8]} 45... Be7 {[%clk 0:00:02.4]}
46. Nxh3 {[%clk 0:00:08.2]} 46... Rh4 {[%clk 0:00:02.2]} 47. Nf2 {[%clk
0:00:06.2]} 47... Rxh1 {[%clk 0:00:01.4]} 48. Nxh1 {[%clk 0:00:07.1]} 48... b5
{[%clk 0:00:02.1]} 49. Ke3 {[%clk 0:00:03.4]} 49... Rxc4 {[%clk 0:00:02.5]} 50.
Ra2 {[%clk 0:00:02.9]} 50... Bc5+ {[%clk 0:00:02.8]} 51. Kf3 {[%clk 0:00:02.9]}
51... Rc3+ {[%clk 0:00:03.2]} 52. Ke4 {[%clk 0:00:02.1]} 52... Rc4+ {[%clk
0:00:03.5]} 53. Kf3 {[%clk 0:00:02.4]} 53... b4 {[%clk 0:00:04.1]} 54. Ng3
{[%clk 0:00:01.7]} 54... b3 {[%clk 0:00:04.4]} 55. Rb2 {[%clk 0:00:02.2]} 55...
Rc3+ {[%clk 0:00:04.8]} 56. Kf4 {[%clk 0:00:01.8]} 56... Ba3 {[%clk 0:00:04.3]}
57. Rb1 {[%clk 0:00:01.9]} 57... b2 {[%clk 0:00:04.6]} 58. Ne2 {[%clk
0:00:02.3]} 58... Rc1 {[%clk 0:00:04.6]} 59. Rxb2 {[%clk 0:00:01.5]} 59... Bxb2
{[%clk 0:00:04.7]} 60. Nxc1 {[%clk 0:00:02.2]} 60... Bxc1+ {[%clk 0:00:05.4]}
61. Ke4 {[%clk 0:00:02.6]} 61... Kd7 {[%clk 0:00:06]} 62. Kd4 {[%clk 0:00:02.9]}
62... Bg5 {[%clk 0:00:06.7]} 63. Kc5 {[%clk 0:00:03.8]} 63... Kc7 {[%clk
0:00:07.3]} 64. Kb5 {[%clk 0:00:04.2]} 64... Bf4 {[%clk 0:00:07.2]} 65. g5
{[%clk 0:00:03.8]} 65... Bxg5 {[%clk 0:00:07.1]} 0-1

[Event "Early-Titled-Tuesday-Blitz-February-13-2024"]
[Site "Chess.com"]
[Date "2024.02.13"]
[Round "2"]
[White "Nouali_Mohamed"]
[Black "bylavochka"]
[Result "1-0"]
[WhiteElo "2543"]
[BlackElo "2323"]
[TimeControl "180+1"]
[EndTime "8:20:58 PST"]
[Termination "Nouali_Mohamed won by checkmate"]

1. e4 {[%clk 0:02:59.5]} 1... c5 {[%clk 0:01:45.5]} 2. Nf3 {[%clk 0:02:55.1]}
2... d6 {[%clk 0:01:45.7]} 3. d4 {[%clk 0:02:55.3]} 3... cxd4 {[%clk 0:01:46.6]}
4. Nxd4 {[%clk 0:02:56]} 4... Nf6 {[%clk 0:01:46.8]} 5. Nc3 {[%clk 0:02:56.5]}
5... g6 {[%clk 0:01:47.3]} 6. Be3 {[%clk 0:02:56.5]} 6... Bg7 {[%clk 0:01:47.7]}
7. f3 {[%clk 0:02:57.2]} 7... Nc6 {[%clk 0:01:47.8]} 8. Qd2 {[%clk 0:02:57.4]}
8... O-O {[%clk 0:01:47.8]} 9. Bc4 {[%clk 0:02:57.7]} 9... Bd7 {[%clk
0:01:47.7]} 10. O-O-O {[%clk 0:02:57.6]} 10... Qa5 {[%clk 0:01:47.9]} 11. Kb1
{[%clk 0:02:47.8]} 11... Rfc8 {[%clk 0:01:47.9]} 12. Bb3 {[%clk 0:02:47.6]}
12... Ne5 {[%clk 0:01:47.8]} 13. g4 {[%clk 0:02:38.1]} 13... Rxc3 {[%clk
0:01:47.1]} 14. Qxc3 {[%clk 0:02:25.1]} 14... Qxc3 {[%clk 0:01:47]} 15. bxc3
{[%clk 0:02:26]} 15... Be8 {[%clk 0:01:45]} 16. h4 {[%clk 0:02:13.7]} 16... Rc8
{[%clk 0:01:43.7]} 17. Kb2 {[%clk 0:01:52.8]} 17... Nfd7 {[%clk 0:01:28.5]} 18.
h5 {[%clk 0:01:18.2]} 18... Nb6 {[%clk 0:01:27.5]} 19. Bc1 {[%clk 0:01:07.2]}
19... Nec4+ {[%clk 0:01:16.7]} 20. Kb1 {[%clk 0:01:06.2]} 20... Na4 {[%clk
0:01:04]} 21. Bxa4 {[%clk 0:00:45.4]} 21... Bxa4 {[%clk 0:01:04.9]} 22. hxg6
{[%clk 0:00:44.2]} 22... hxg6 {[%clk 0:00:59.6]} 23. f4 {[%clk 0:00:44.6]} 23...
Bd7 {[%clk 0:00:43.6]} 24. f5 {[%clk 0:00:35.9]} 24... Nb6 {[%clk 0:00:37.9]}
25. Rh3 {[%clk 0:00:30.4]} 25... Na4 {[%clk 0:00:32]} 26. Bb2 {[%clk 0:00:24.9]}
26... g5 {[%clk 0:00:17.6]} 27. Rh5 {[%clk 0:00:20.8]} 27... Bf6 {[%clk
0:00:11.5]} 28. Rd3 {[%clk 0:00:13.3]} 28... Nc5 {[%clk 0:00:07.9]} 29. Re3
{[%clk 0:00:12.9]} 29... Kg7 {[%clk 0:00:06.8]} 30. Nb3 {[%clk 0:00:13]} 30...
Na4 {[%clk 0:00:06.3]} 31. Reh3 {[%clk 0:00:12.7]} 31... Nxc3+ {[%clk
0:00:04.4]} 32. Bxc3 {[%clk 0:00:11.4]} 32... Rxc3 {[%clk 0:00:05.3]} 33. Rxg5+
{[%clk 0:00:10.1]} 33... Bxg5 {[%clk 0:00:03.5]} 34. Rxc3 {[%clk 0:00:10.2]}
34... Bc6 {[%clk 0:00:03.3]} 35. Rc4 {[%clk 0:00:07.9]} 35... Kf6 {[%clk
0:00:03.8]} 36. Na5 {[%clk 0:00:07.7]} 36... Ke5 {[%clk 0:00:01.7]} 37. Nxc6+
{[%clk 0:00:05.5]} 37... bxc6 {[%clk 0:00:02.6]} 38. Kb2 {[%clk 0:00:05.5]}
38... d5 {[%clk 0:00:02.1]} 39. exd5 {[%clk 0:00:06.1]} 39... cxd5 {[%clk
0:00:02.8]} 40. Ra4 {[%clk 0:00:06.6]} 40... Be3 {[%clk 0:00:02.5]} 41. Kc3
{[%clk 0:00:05.9]} 41... Bb6 {[%clk 0:00:03.1]} 42. Kd3 {[%clk 0:00:05.8]} 42...
d4 {[%clk 0:00:03]} 43. c3 {[%clk 0:00:04.6]} 43... dxc3 {[%clk 0:00:02.5]} 44.
Kxc3 {[%clk 0:00:05.5]} 44... e6 {[%clk 0:00:02.8]} 45. fxe6 {[%clk 0:00:05.2]}
45... fxe6 {[%clk 0:00:03.7]} 46. Kd3 {[%clk 0:00:05.7]} 46... Bc5 {[%clk
0:00:02.9]} 47. Re4+ {[%clk 0:00:06.5]} 47... Kd5 {[%clk 0:00:03]} 48. a4 {[%clk
0:00:07.4]} 48... e5 {[%clk 0:00:03.7]} 49. Re2 {[%clk 0:00:07.3]} 49... Bd4
{[%clk 0:00:04.6]} 50. g5 {[%clk 0:00:07.6]} 50... Ke6 {[%clk 0:00:05.5]} 51.
Ke4 {[%clk 0:00:07.5]} 51... Kf7 {[%clk 0:00:05.9]} 52. Rg2 {[%clk 0:00:08.2]}
52... Kg6 {[%clk 0:00:06.3]} 53. a5 {[%clk 0:00:08.7]} 53... Kg7 {[%clk
0:00:04]} 54. a6 {[%clk 0:00:09.6]} 54... Kg6 {[%clk 0:00:04.4]} 55. Rg3 {[%clk
0:00:09.6]} 55... Kg7 {[%clk 0:00:04.2]} 56. Kf5 {[%clk 0:00:09.8]} 56... Kf7
{[%clk 0:00:03.6]} 57. Rg4 {[%clk 0:00:10.1]} 57... Bc3 {[%clk 0:00:02.2]} 58.
g6+ {[%clk 0:00:10.6]} 58... Kg7 {[%clk 0:00:02.5]} 59. Rg2 {[%clk 0:00:11.2]}
59... Bd4 {[%clk 0:00:02.7]} 60. Rc2 {[%clk 0:00:11.5]} 60... Kh6 {[%clk
0:00:02]} 61. Rc7 {[%clk 0:00:11.2]} 61... Bc3 {[%clk 0:00:01.2]} 62. Rh7#
{[%clk 0:00:12.1]} 1-0